{"text_format":"3","workbook":"xlsx","n_sheets":4,"sheets":["Povzetek","Sredstva","Obveznosti","Kategorije"],"not_rendered":{"defined_names":10},"read":"whole","date_system":"1900"}

{"sheet":"Povzetek","index":0,"n_rows":12,"n_cols":4,"rows_kept":12}
[null,"Bilanca"]
[null,null,{"$f":"\"FL-\"&YEAR(TODAY())-1","v":"FL-2016"},{"$f":"\"FL-\"&YEAR(TODAY())","v":"FL-2017"}]
[null,"Vrsta sredstva","Prejšnje leto","Trenutno leto"]
[null,"Kratkoročna sredstva",{"$f":"SUMIFS(Sredstva[Prejšnje leto],Sredstva[Vrsta sredstva],Nadzorna_plošča[[#This Row],[Vrsta sredstva]])+SUMIFS(Obveznosti[Prejšnje leto],Obveznosti[Vrsta obveznosti],Nadzorna_plošča[[#This Row],[Vrsta sredstva]])","v":600},{"$f":"SUMIFS(Sredstva[Trenutno leto],Sredstva[Vrsta sredstva],Nadzorna_plošča[[#This Row],[Vrsta sredstva]])+SUMIFS(Obveznosti[Trenutno leto],Obveznosti[Vrsta obveznosti],Nadzorna_plošča[[#This Row],[Vrsta sredstva]])","v":600}]
[null,"Osnovna sredstva",{"$f":"SUMIFS(Sredstva[Prejšnje leto],Sredstva[Vrsta sredstva],Nadzorna_plošča[[#This Row],[Vrsta sredstva]])+SUMIFS(Obveznosti[Prejšnje leto],Obveznosti[Vrsta obveznosti],Nadzorna_plošča[[#This Row],[Vrsta sredstva]])","v":{"v":-100,"d":"-100 "}},{"$f":"SUMIFS(Sredstva[Trenutno leto],Sredstva[Vrsta sredstva],Nadzorna_plošča[[#This Row],[Vrsta sredstva]])+SUMIFS(Obveznosti[Trenutno leto],Obveznosti[Vrsta obveznosti],Nadzorna_plošča[[#This Row],[Vrsta sredstva]])","v":{"v":-85,"d":"-85 "}}]
[null,"Druga sredstva",{"$f":"SUMIFS(Sredstva[Prejšnje leto],Sredstva[Vrsta sredstva],Nadzorna_plošča[[#This Row],[Vrsta sredstva]])+SUMIFS(Obveznosti[Prejšnje leto],Obveznosti[Vrsta obveznosti],Nadzorna_plošča[[#This Row],[Vrsta sredstva]])","v":0},{"$f":"SUMIFS(Sredstva[Trenutno leto],Sredstva[Vrsta sredstva],Nadzorna_plošča[[#This Row],[Vrsta sredstva]])+SUMIFS(Obveznosti[Trenutno leto],Obveznosti[Vrsta obveznosti],Nadzorna_plošča[[#This Row],[Vrsta sredstva]])","v":0}]
[null,"Trenutno obveznosti",{"$f":"SUMIFS(Sredstva[Prejšnje leto],Sredstva[Vrsta sredstva],Nadzorna_plošča[[#This Row],[Vrsta sredstva]])+SUMIFS(Obveznosti[Prejšnje leto],Obveznosti[Vrsta obveznosti],Nadzorna_plošča[[#This Row],[Vrsta sredstva]])","v":500},{"$f":"SUMIFS(Sredstva[Trenutno leto],Sredstva[Vrsta sredstva],Nadzorna_plošča[[#This Row],[Vrsta sredstva]])+SUMIFS(Obveznosti[Trenutno leto],Obveznosti[Vrsta obveznosti],Nadzorna_plošča[[#This Row],[Vrsta sredstva]])","v":350}]
[null,"Dolgoročne obveznosti",{"$f":"SUMIFS(Sredstva[Prejšnje leto],Sredstva[Vrsta sredstva],Nadzorna_plošča[[#This Row],[Vrsta sredstva]])+SUMIFS(Obveznosti[Prejšnje leto],Obveznosti[Vrsta obveznosti],Nadzorna_plošča[[#This Row],[Vrsta sredstva]])","v":0},{"$f":"SUMIFS(Sredstva[Trenutno leto],Sredstva[Vrsta sredstva],Nadzorna_plošča[[#This Row],[Vrsta sredstva]])+SUMIFS(Obveznosti[Trenutno leto],Obveznosti[Vrsta obveznosti],Nadzorna_plošča[[#This Row],[Vrsta sredstva]])","v":0}]
[null,"Lastni kapital lastnika",{"$f":"SUMIFS(Sredstva[Prejšnje leto],Sredstva[Vrsta sredstva],Nadzorna_plošča[[#This Row],[Vrsta sredstva]])+SUMIFS(Obveznosti[Prejšnje leto],Obveznosti[Vrsta obveznosti],Nadzorna_plošča[[#This Row],[Vrsta sredstva]])","v":0},{"$f":"SUMIFS(Sredstva[Trenutno leto],Sredstva[Vrsta sredstva],Nadzorna_plošča[[#This Row],[Vrsta sredstva]])+SUMIFS(Obveznosti[Trenutno leto],Obveznosti[Vrsta obveznosti],Nadzorna_plošča[[#This Row],[Vrsta sredstva]])","v":350}]
[null,"Skupno število sredstev",{"$f":"Sredstva[[#Totals],[Prejšnje leto]]","v":500},{"$f":"Sredstva[[#Totals],[Trenutno leto]]","v":515}]
[null,"Skupna vrednost obveznosti in lastni kapital zainteresiranih skupin",{"$f":"Obveznosti[[#Totals],[Prejšnje leto]]","v":500},{"$f":"Obveznosti[[#Totals],[Trenutno leto]]","v":700}]
[null,"Bilanca",{"$f":"C10-C11","v":0},{"$f":"D10-D11","v":{"v":-185,"d":"-185 "}}]

{"sheet":"Sredstva","index":1,"n_rows":14,"n_cols":5,"rows_kept":14}
[null,"Sredstva"]
[{"$nulls":3},{"$f":"F_LETO","v":"FL-2016"},{"$f":"F_LETO_2","v":"FL-2017"}]
[null,"Vrsta sredstva","Opis","Prejšnje leto","Trenutno leto"]
[null,"Kratkoročna sredstva","Gotovina",600,600]
[null,"Kratkoročna sredstva","Naložbe"]
[null,"Kratkoročna sredstva","Inventar"]
[null,"Kratkoročna sredstva","Terjatve"]
[null,"Kratkoročna sredstva","Vnaprej plačani stroški"]
[null,"Osnovna sredstva","Nepremičnina in oprema"]
[null,"Osnovna sredstva","Izboljšave zakupa"]
[null,"Osnovna sredstva","Lastni kapital in druge naložbe"]
[null,"Osnovna sredstva","Minus obračunana amortizacija (negativna vrednost)",{"v":-100,"d":"-100 "},{"v":-85,"d":"-85 "}]
[null,"Druga sredstva","Dobrodelne organizacije"]
[null,"Skupno število sredstev",null,{"$f":"SUBTOTAL(109,Sredstva[Prejšnje leto])","v":500},{"$f":"SUBTOTAL(109,Sredstva[Trenutno leto])","v":515}]

{"sheet":"Obveznosti","index":2,"n_rows":12,"n_cols":5,"rows_kept":12}
[null,"Obveznosti"]
[{"$nulls":3},{"$f":"F_LETO","v":"FL-2016"},{"$f":"F_LETO_2","v":"FL-2017"}]
[null,"Vrsta obveznosti","Opis","Prejšnje leto","Trenutno leto"]
[null,"Trenutno obveznosti","Obveznosti",null,350]
[null,"Trenutno obveznosti","Obračunane plače"]
[null,"Trenutno obveznosti","Obračunano nadomestilo",500]
[null,"Trenutno obveznosti","Davek na dohodek"]
[null,"Trenutno obveznosti","Prenosne premije"]
[null,"Dolgoročne obveznosti","Hipoteka"]
[null,"Lastni kapital lastnika","Kapitalska naložba",null,350]
[null,"Lastni kapital lastnika","Zbrani zadržani dobiček"]
[null,"Skupna vrednost obveznosti in lastni kapital zainteresiranih skupin",null,{"$f":"SUBTOTAL(109,Obveznosti[Prejšnje leto])","v":500},{"$f":"SUBTOTAL(109,Obveznosti[Trenutno leto])","v":700}]

{"sheet":"Kategorije","index":3,"n_rows":9,"n_cols":2,"rows_kept":9}
[null,"Kategorije"]
[]
[null,"Kategorije"]
[null,"Kratkoročna sredstva"]
[null,"Osnovna sredstva"]
[null,"Druga sredstva"]
[null,"Trenutno obveznosti"]
[null,"Dolgoročne obveznosti"]
[null,"Lastni kapital lastnika"]